Cogmind - Beta 15 @@@ ROGUE MODE // 2025.07.16 @ 00:15:43 Player: Carpathian Result: Self-destructed Performance ------------- Evolutions (1) 500 Regions Visited (2) 400 Robots Destroyed (16) 80 Value Destroyed (390) 390 Prototype IDs (0) 0 Alien Tech Used (0) 0 Bonus (0) 0 TOTAL SCORE: 1370 Bonus ------- None Cogmind --------- Core Integrity 375/400 Matter 300/300 Energy 160/160 System Corruption 0% Temperature Cool (0) Movement Treading (240) Ox1 Location -9/Materials Parts ------- > --- POWER (1) -------- Light Nuclear Core > --- PROPULSION (2) --- Light Treads Light Treads > --- UTILITY (4) ------ Large Storage Unit Targeting Computer Heavy Armor Plating > --- WEAPON (2) ------- Light Assault Rifle Light Assault Rifle > --- INVENTORY (15) --- Light Ion Engine Large Storage Unit Melee Analysis Suite EM Pulse Gun Rocket Launcher Rocket Launcher Datajack Peak State ------------ > --- POWER ------------ Light Nuclear Core > --- PROPULSION ------- Light Treads Light Treads > --- UTILITY ---------- Large Storage Unit Targeting Computer Heavy Armor Plating > --- WEAPON ----------- Light Assault Rifle Light Assault Rifle > --- INVENTORY -------- Light Ion Engine Large Storage Unit Melee Analysis Suite EM Pulse Gun Rocket Launcher Rocket Launcher Datajack [Rating: 16] Favorites ----------- Power Light Nuclear Core Engine Light Ion Engine Power Core Light Nuclear Core Propulsion Light Treads Treads Light Treads Utility Large Storage Unit Storage Large Storage Unit Processor Targeting Computer Protection Heavy Armor Plating Weapon Light Assault Rifle Energy Gun Small Laser Ballistic Gun Light Assault Rifle Build | -11 -10 -9 ------- Run | Yrd Mat Mat Slots Evolved 2 | . . 2 Power . | . . . Propulsion . | . . . Utility 2 | . . 2 Weapon . | . . . Parts Attached 16 | 6 2 8 Power 2 | 1 . 1 Engine 1 | 1 . . Core 1 | . . 1 Reactor . | . . . Propulsion 3 | 2 . 1 Treads 3 | 2 . 1 Leg . | . . . Wheel . | . . . Hover . | . . . Flight . | . . . Utility 4 | 1 1 2 Device . | . . . Storage 2 | 1 1 . Processor 1 | . . 1 Hackware . | . . . Protection 1 | . . 1 Artifact . | . . . Weapon 7 | 2 1 4 Energy Gun 2 | . . 2 Energy Cannon . | . . . Ballistic Gun 5 | 2 1 2 Ballistic Cannon . | . . . Launcher . | . . . Special Weapon . | . . . Impact Weapon . | . . . Slashing Weapon . | . . . Piercing Weapon . | . . . Special Melee Weapon . | . . . Unidentified Prototypes . | . . . Parts Lost 1 | . . 1 Power . | . . . Propulsion . | . . . Utility . | . . . Weapon 1 | . . 1 Highest Loss Streak 1 | . . 1 To Critical Strikes . | . . . Average Backups 4 | 1 2 5 Power 1 | . 1 1 Propulsion . | . . . Utility 1 | . . 1 Weapon . | . 1 1 Tool/Special . | . . . Unused Backups 6 | . . 6 Power 1 | . . 1 Propulsion 2 | . . 2 Utility 2 | . . 2 Weapon . | . . . Tool/Special 1 | . . 1 Average Slot Usage (%) 80 | . 85 78 Engine 5 | . 14 1 Core 6 | . . 9 Treads 23 | . 28 22 Storage 11 | . 14 11 Processor 5 | . . 7 Protection 6 | . . 9 Energy Gun 3 | . . 5 Ballistic Gun 17 | . 28 11 Peak Build Rating 16 | 6 6 16 Average Rating 10 | 4 6 13 On Entrance 4 | . 6 6 Naked Turns . | . . . Heaviest Build 43 | 11 26 43 Greatest Support 40 | 40 40 40 Greatest Overweight (x) 3 | 3 . 1 Average Overweight (x) . | 1 . . Largest Inventory Capacity 15 | 8 15 15 Average Capacity 12 | 7 8 15 Most Carried 8 | 4 7 8 Average Carried 4 | 1 2 5 Final Capacity 15 | 8 15 15 Final Carried 7 | 2 6 7 Class Distribution -------------------- 100% | Mutant Dominant Class ---------------- Mutant | -10/Materials Mutant | -9/Materials Resources | -11 -10 -9 ----------- Run | Yrd Mat Mat Matter Collected 534 | 234 150 150 Remotely . | . . . Salvage Created 481 | . 241 240 Parts 46 | . 23 23 Haulers Intercepted . | . . . Recyclers Shooed . | . . . Parts Field Recycled . | . . . Retrieved Matter . | . . . Parts Self-Destructed . | . . . Prevented . | . . . Kills | -11 -10 -9 ------- Run | Yrd Mat Mat Combat Hostiles Destroyed 14 | . 7 7 Guns 13 | . 7 6 AOE 1 | . . 1 Classes Destroyed 6 | . 3 3 Builder 1 | . . 1 Operator 1 | . 1 . Swarmer 6 | . 3 3 Grunt 6 | . 4 2 Duelist 1 | . . 1 Sentry 1 | . . 1 Best Kill Streak 3 | . 3 3 Combat Bots Only 3 | . 3 3 Max Kills in Single Turn 1 | . 1 1 Gunslinging . | . . . Exploded 1 | . . 1 Melee . | . . . Uniques/NPCs Destroyed . | . . . Combat | -11 -10 -9 -------- Run | Yrd Mat Mat Hostile Shots Fired 76 | . 36 40 Missed 22 | . 12 10 Hits 54 | . 24 30 Melee 3 | . . 3 Projectile 51 | . 24 27 Critical Strikes 2 | . . 2 Damage Taken 630 | . 241 389 Core 25 | . . 25 Absorbed by Shields . | . . . Core Remaining (%) 100 | 100 100 . Volleys Fired 67 | . 27 40 Largest 2 | . 2 2 Hottest 60 | . 40 60 Shots Fired 127 | . 54 73 Gun 127 | . 54 73 Cannon . | . . . Launcher . | . . . Special . | . . . Kinetic 104 | . 54 50 Thermal 14 | . . 14 Explosive . | . . . Electromagnetic 9 | . . 9 Robot Hit Streak 6 | . 6 6 Robot Miss Streak 4 | . 4 3 Penetration Max . | . . . Secondary Targets 2 | . 2 . Max Gunslinging Chain 1 | . 1 . Shots Hit Robots 78 | . 32 46 Core Hits 30 | . 13 17 Critical Kills . | . . . Critical Parts Destroyed . | . . . Critical Strikes . | . . . Melee Attacks . | . . . Impact . | . . . Slashing . | . . . Piercing . | . . . Sneak Attacks . | . . . Combat Hostiles . | . . . Follow-up Attacks . | . . . Damage Inflicted 776 | . 328 448 Guns 725 | . 328 397 Cannons . | . . . Explosions 51 | . . 51 Melee . | . . . Ramming . | . . . Kinetic 573 | . 328 245 Thermal 137 | . . 137 Explosive . | . . . Electromagnetic 66 | . . 66 Impact . | . . . Slashing . | . . . Piercing . | . . . Highest Corruption 3 | . 3 . Average Corruption 2 | . 2 . Corruption Purged . | . . . Corruption Blocked . | . . . Effects 2 | . 2 . Matter Fused 2 | . 2 . Overload Shots . | . . . Overflow Damage . | . . . Projectiles . | . . . Explosions . | . . . Melee . | . . . Knockbacks . | . . . Impact . | . . . Kinetic . | . . . Secondary . | . . . Self-Inflicted Damage . | . . . Shots . | . . . Rammed . | . . . Targets Rammed . | . . . Kicked . | . . . Crushed . | . . . Highest Temperature 147 | . 24 147 Average Temperature 52 | . 11 56 Received Heat Transfer 168 | . 69 99 Siege Activations . | . . . Martial Activations . | . . . Shielding Activations . | . . . Robots Disrupted . | . . . Combat Hostiles . | . . . Robots Corrupted . | . . . Combat Hostiles . | . . . Parts Fried . | . . . Impact Corruptions . | . . . Robots Melted . | . . . Combat Hostiles . | . . . Parts Melted . | . . . Heat Transferred 300 | . . 300 Parts Sabotaged . | . . . Parts Stolen . | . . . Parts Stripped . | . . . Power Chain Reactions 1 | . . 1 Alert | -11 -10 -9 ------- Run | Yrd Mat Mat Maximum Alert Level . | . . . Low Security (%) 100 | 100 100 100 Level 1 . | . . . Level 2 . | . . . Level 3 . | . . . Level 4 . | . . . Level 5 . | . . . High Security . | . . . Max Security . | . . . Peak Influence 79 | . 79 68 Initial 24 | . . 24 Average 22 | . 39 17 Influence Increases 377 | . 189 188 Destroy 0b10 Robot/C 280 | . 140 140 Destroy 0b10 Robot/NC 10 | . 5 5 Destroy Leader 60 | . 20 40 Successful Hack 9 | . 9 . Destroy Structure 3 | . . 3 Partial Spotted 15 | . 15 . Influence Decreases 336 | . 130 206 Entered New Map 35 | . . 35 Time Decay 291 | . 130 161 Lost Part 10 | . . 10 Squads Dispatched 2 | . 1 1 Investigation 1 | . . 1 Extermination . | . . . Reinforcement 1 | . 1 . Assault . | . . . Garrison . | . . . Intercept . | . . . Searches Triggered . | . . . Construction Impeded . | . . . Haulers Reinforced . | . . . Active Scanning Responses . | . . . Cargo Convoy Interrupts . | . . . Stealth | -11 -10 -9 --------- Run | Yrd Mat Mat Distress Signals 1 | . . 1 Communications Jammed . | . . . Distress Signals . | . . . Times Spotted 20 | . 9 11 Peak Tracking Total 4 | . 3 4 Tactical Retreats . | . . . Traps | -11 -10 -9 ------- Run | Yrd Mat Mat Traps Triggered 2 | . 2 . Indirectly . | . . . Trap Hack Attempts . | . . . Triggered . | . . . Disarmed . | . . . Reprogrammed . | . . . Reused . | . . . Traps Extracted . | . . . Installed . | . . . Triggered . | . . . Machines | -11 -10 -9 ---------- Run | Yrd Mat Mat Machines Disabled . | . . . Max in Single Turn . | . . . Machines Repaired . | . . . Machines Dismantled . | . . . Machines Sabotaged . | . . . Overloaded Fab Kills . | . . . Hacking | -11 -10 -9 --------- Run | Yrd Mat Mat Machines Accessed 2 | . 1 1 Terminals 2 | . 1 1 Fabricators . | . . . Repair Stations . | . . . Recycling Units . | . . . Scanalyzers . | . . . Garrison Access . | . . . Total Hacks 4 | . 2 2 Successful 1 | . 1 . Failed 3 | . 1 2 Catastrophic . | . . . Database Lockouts . | . . . Manual 4 | . 2 2 Terminals 4 | . 2 2 Fabricators . | . . . Repair Stations . | . . . Recycling Units . | . . . Scanalyzers . | . . . Garrison Access . | . . . Terminal Hacks 1 | . 1 . Level Access Points 1 | . 1 . Fabricator Hacks . | . . . Repair Station Hacks . | . . . Recycling Unit Hacks . | . . . Scanalyzer . | . . . Garrison Access Hacks . | . . . Unauthorized Hacks . | . . . Terminals . | . . . Fabricators . | . . . Repair Stations . | . . . Recycling Units . | . . . Scanalyzers . | . . . Garrison Access . | . . . Data Cores Recovered . | . . . Used . | . . . Hacking Detections 1 | . . 1 Full Trace Events 1 | . . 1 Feedback Events . | . . . Feedback Blocked . | . . . Robot Schematics Acquired . | . . . Robots Built . | . . . Authchips . | . . . Time . | . . . Total Robot Build Rating . | . . . Part Schematics Acquired . | . . . Parts Built . | . . . Authchips . | . . . Time . | . . . Total Part Build Rating . | . . . Parts Repaired . | . . . Time . | . . . Parts Recycled . | . . . Recycled Matter . | . . . Retrieved Matter . | . . . Retrieved Components . | . . . Parts Scanalyzed . | . . . Part Schematics Acquired . | . . . Parts Damaged . | . . . Bothacking | -11 -10 -9 ------------ Run | Yrd Mat Mat Used RIF Installer . | . . . Robots Hacked . | . . . Non-combat . | . . . Combat . | . . . Robot Hacks Applied . | . . . Relay Couplers Released . | . . . Fabnet Peak Effective % . | . . . Robots Rewired . | . . . Allies Hacked . | . . . Hacks Repelled . | . . . Allies | -11 -10 -9 -------- Run | Yrd Mat Mat Total Allies . | . . . Largest Group . | . . . Highest-Rated Group . | . . . Highest-Rated Ally . | . . . Total Orders . | . . . Ally Attacks . | . . . Total Damage . | . . . Kills . | . . . Allies Corrupted . | . . . Allies Melted . | . . . Intel | -11 -10 -9 ------- Run | Yrd Mat Mat Active Infowar (turns) . | . . . Robot Analysis Total . | . . . Derelict Logs Recovered . | . . . Drone Launches . | . . . Drone Recoveries . | . . . Exploration | -11 -10 -9 ------------- Run | Yrd Mat Mat Turns Passed 988 | 93 289 606 Spaces Moved 382 | 51 128 203 Core 29 | 29 . . Treads 353 | 22 128 203 Legs . | . . . Wheels . | . . . Hover . | . . . Flight . | . . . Fastest Speed 50 | 50 160 160 Average Speed 194 | 156 160 225 Slowest Speed 240 | 200 160 240 Overloaded Moves . | . . . Propulsion Burnouts . | . . . Robots Hopped . | . . . Potential Cave-ins . | . . . Cave-ins Triggered . | . . . Exploration Rate (%) 17 | 4 27 20 Regions Visited 2 Branch Regions . Pre-discovered Areas . | . . . Known Exits Taken 1 | . 1 . Unknown Exits Taken 1 | 1 . . Scrap Searched . | . . . Spaces Dug . | . . . Terrain Destroyed 3 | . . 3 Melee . | . . . Projectile . | . . . AOE 3 | . . 3 Terrain Rammed . | . . . Walls Destroyed . | . . . Machines Disabled . | . . . Actions | -11 -10 -9 --------- Run | Yrd Mat Mat Total 515 | 64 164 287 Wait 21 | . . 21 Move 380 | 50 127 203 Hop . | . . . Pick Up 24 | 8 6 10 Fast Attach . | . . . Attach 10 | 6 . 4 Detach . | . . . Swap 6 | . 2 4 Drop 7 | . 2 5 Fire 67 | . 27 40 Melee . | . . . Ram . | . . . Kick . | . . . Crush . | . . . Escape Stasis . | . . . Rewire . | . . . Trap . | . . . Miscellaneous . | . . . Route ------- -11/Scrapyard -10/Materials (discovered 3 exits: *Mat x3) -9/Materials History --------- Turn | Location | Event 8 | -11/Scrapyard | Discovered new exit (range 16) 94 | -11/Scrapyard | Entered Materials 95 | -10/Materials | Met a group of wandering Federalists 147 | -10/Materials | Identified exit to Materials 301 | -10/Materials | Build established: Mutant 383 | -10/Materials | Entered another Materials area 383 | -9/Materials | Evolved 2 slots: Utility x2 989 | -9/Materials | Self-destructed Last Messages --------------- 00680_ U-05 Engineer builds a Wall. 00690_ Acquired Sml. Laser. 00698_ K-01 Serf collects debris. 00709_ Acquired Lgt. Assault Rifle. 00752_ Connecting with Terminal... 00752_ ALERT: Suspicious activity at Terminal M005. Dispatching Investigation squad. 00828_ G-34 Mercenary destroyed. 00886_ S-10 Pest destroyed. 00887_ Acquired 14 matter. 00889_ S-10 Pest destroyed. 00890_ Acquired 14 matter. 00902_ Destroyed Lgt. Ion Engine. 00905_ S-10 Pest destroyed. 00910_ Acquired Lgt. Assault Rifle. 00913_ Dropped Sml. Laser. 00916_ Acquired 15 matter. 00935_ Acquired Rocket Launcher. 00979_ U-05 Engineer destroyed. 00987_ Acquired 20 matter. Map ----- +----------------------------------------------------+ | ?????????????????????????????????????????????????? | | ?????????????????????????????????????????????????? | | ?????????????????????????????????????????????????? | | ?????????????????????????????????????????????????? | | ?????????????????????????????????????????????????? | | ?????????????????????????????????????????????????? | | ?????????????????????????????????????????????????? | | ?????????????????????????????????????????????????? | | ?????????????????????????????????????????????????? | | ?????????????????????????????????????????????????? | | ?????????????????????????????????????????????????? | | ?????????????????????????????????????????????????? | | ?????????????????????????????????????????????????? | | ???????????????????????????????? #??????????????? | | ???????????????????????????????? #??????????????? | | ??????????????????????????????? #??????????????? | | ??????????????????????????????? #??????????????? | | ????????????????????????####### #??????????????? | | ????????????????????????# #??????????????? | | ????????????????????????# #??????????????? | | ????????????????????????# "" #######????????? | | ????????????????????????# Y" ????????? | | ????????????????????????# "" ????????? | | ????????????????????????# ??????????? | | ??????????????????##????#!= #??????????????? | | ?????????????????## ??#@! #??????????????? | | ?????????????? #* #??????????????? | | ??????????????? " #??????????????? | | ?????????????? ## #??????????????? | | ???????????????#### ??# #### #??????????????? | | ??????????????????########+#### #??????????????? | | ?????????????????????# # #??????????????? | | ?????????????????????# ! # [#??????????????? | | ?????????????????????# ! ]# !%#??????????????? | | ?????????????????????# ] # ==#######+### ??? | | ?????????????????????# # ??? | | ?????????????????????# + ??? | | ?????????????????????# # ??? | | ?????????????????????# # ############+#?? | | ?????????????????????# # = # #?? | | ??????????????##############+## =#* #?? | | ??????????????# #??# =[+ #?? | | ??????????????# " """ #??# =#= #?? | | ??????????????# T """ #### # #?? | | ??????????????# " """ + ##############?? | | ??????????????# """ ########+#####???????????? | | ??????????????# """ #???# #???????????? | | ??????????????# #???# ! #???????????? | | ??????????????# #???# #???????????? | | ???????????########+######### """ #???????????? | +----------------------------------------------------+ Best States ------------- Heat Dissipation 28 Energy Generation 14 Energy Capacity 160 Matter Stores 300 Matter Capacity 300 Sight Range 16 Terrain Scan Density 10 Armor Coverage 600 Evasion (%) 50 Targeting Accuracy 5 Recoil Reduction 2 Item Schematics ----------------- None Robot Schematics ------------------ None Fabricated ------------ Nothing Repaired ---------- Nothing Alien Tech Used ----------------- None Achievements -------------- None Challenges ------------ None Game ------ Seed SpectralDefenseRailgun Manual? 0 Play Time 00:07:44 Cumulative 33.1 hours Start 2025.07.16 @ 00:04:01 End 2025.07.16 @ 00:15:43 Sessions 1 Manual Loads 0 Difficulty Rogue Special Mode None Game No. 178 Rogue 178 Adventurer 0 Explorer 0 Win Type - Total 0 Types 0/0/0/0/0/0/0/0/0/0 Lore% 9 Gallery% 24 Achievement% 19 Wizard Run 0 Options --------- Layout 0 ASCII 0 Keyboard 0 Movement Arrows Keybinds 0 Fullscreen 2 Font 24/Cog Map View 76x50 Zoom Use 0% Tactical HUD 1 Map Filters NONE Filters NONE Steam 1 RUN: 9066e4df-bdff-4e56-9110-518603537fe2